bitfinex-derivatives/quotes_SOLF0:USTF0_20251026
["timestamp","ask_amount","ask_price","bid_price","bid_amount"]
[1761499582973,3.62465831,199.0,198.98,2.79]
[1761499583152,4.22659619,199.04,198.98,2.79]
[1761499583353,3.6238724,199.03,198.99,2.79]
[1761499583662,3.6238724,199.02,198.99,2.79]
[1761499583865,3.6238724,199.01,198.99,2.79]
[1761499584165,8.93665885,199.05,198.99,2.79]
[1761499584349,7.85319759,199.04,198.99,2.79]
[1761499584558,3.62387813,199.03,199.0,2.79]
[1761499584755,3.62387813,199.02,199.0,2.79]
[1761499585057,4.70733939,199.06,199.0,2.79]
[1761499585058,4.22911687,199.05,199.0,2.79]
[1761499585362,3.62349486,199.04,199.0,2.79]
[1761499585562,3.62349486,199.03,199.0,2.79]
[1761499585762,3.62349486,199.02,199.0,2.79]
[1761499585965,3.62349486,199.01,199.0,2.79]
[1761499586263,3.62349486,199.04,199.0,2.79]
[1761499586461,3.62349486,199.03,199.0,2.79]
[1761499586761,3.62349486,199.02,199.0,2.79]
[1761499586957,3.62349486,199.01,199.0,2.79]
[1761499587158,3.62349486,199.04,199.0,2.79]
[1761499587455,3.62349486,199.03,199.0,2.79]
[1761499587655,3.62349486,199.02,199.0,2.79]
[1761499587856,3.62349486,199.01,199.0,2.79]
[1761499588058,3.62349486,199.04,199.0,2.79]
[1761499588258,3.62349486,199.03,199.0,2.79]
[1761499588458,3.62349486,199.02,199.0,2.79]
[1761499588764,3.62349486,199.04,199.0,2.79]
[1761499588964,3.62349486,199.03,199.0,2.79]
[1761499589158,3.62349486,199.02,199.0,2.79]
[1761499589359,3.62349486,199.04,199.0,2.79]
[1761499589560,3.62349486,199.03,199.0,2.79]
[1761499589762,3.62349486,199.02,199.0,2.79]
[1761499589961,3.62349486,199.04,199.0,2.79]
[1761499590162,3.62349486,199.03,199.0,2.79]
[1761499590462,3.62349486,199.02,199.0,2.79]
[1761499590660,7.85135696,199.06,199.0,2.79]
[1761499590860,3.62349486,199.05,199.0,2.79]
[1761499591061,3.62349486,199.04,199.0,2.79]
[1761499591262,3.62349486,199.03,199.0,2.79]
[1761499591462,3.62349486,199.02,199.0,2.79]
[1761499591657,3.62349486,199.05,199.0,2.79]
[1761499591857,3.62349486,199.04,199.0,2.79]
[1761499592065,3.62349486,199.03,198.96,2.79]
[1761499592266,3.62349486,199.02,198.96,2.79]
[1761499592558,3.62349486,199.01,198.96,2.79]
[1761499592764,3.62349486,199.0,198.96,2.79]
[1761499592968,3.62349486,199.02,198.96,2.79]
[1761499593164,3.62349486,199.01,198.96,2.79]
[1761499593463,3.62349486,199.0,198.96,2.79]
[1761499593668,3.62349486,199.02,198.96,2.79]
[1761499593860,3.62349486,199.01,198.96,2.79]
[1761499594166,3.62349486,199.0,198.96,2.79]
[1761499594469,3.62349486,199.03,198.96,2.79]
[1761499594658,3.62349486,199.02,198.96,2.79]
[1761499594859,3.62349486,199.01,198.96,2.79]
[1761499595059,3.62349486,199.0,198.96,2.79]
[1761499595258,3.62349486,199.02,198.96,2.79]
[1761499595459,3.62349486,199.01,198.96,2.79]
[1761499595666,3.62349486,199.0,198.96,2.79]
[1761499595867,4.2261199,199.03,198.96,2.79]
[1761499596069,3.61895641,199.02,198.96,2.79]
[1761499596370,3.61895641,199.01,198.96,2.79]
[1761499596570,3.61895641,199.0,198.96,2.79]
[1761499596773,3.61895641,198.99,198.96,2.79]
[1761499596972,3.61895641,199.02,198.96,2.79]
[1761499597173,3.61895641,199.01,198.96,2.79]
[1761499597372,3.61895641,199.0,198.96,2.79]
[1761499597673,3.61895641,198.99,198.96,2.79]
[1761499597874,3.61895641,199.02,198.96,2.79]
[1761499598173,3.61895641,199.01,198.96,2.79]
[1761499598371,3.61895641,199.0,198.96,2.79]
[1761499598573,3.61895641,198.99,198.96,2.79]
[1761499598771,3.61895641,199.02,198.96,2.79]
[1761499598974,3.61895641,199.01,198.96,2.79]
[1761499599176,3.61895641,199.0,198.96,2.79]
[1761499599375,3.61895641,198.99,198.96,2.79]
[1761499599575,3.61895641,199.02,198.96,2.79]
[1761499599776,3.61895641,199.01,198.96,2.79]
[1761499600079,3.61895641,199.0,198.96,2.79]
[1761499600277,7.84445762,199.04,198.98,2.66]
[1761499600577,3.61895641,199.03,198.98,2.66]
[1761499600879,3.61895641,199.02,198.92,2.66]
[1761499601079,3.43719526,199.03,198.94,2.66]
[1761499601275,4.70733939,199.08,198.94,2.66]
[1761499601276,4.22642621,199.07,198.94,2.66]
[1761499601477,4.70733939,199.06,198.99,7.1822]
[1761499603882,4.70733939,199.06,198.99,2.66]
[1761499604075,4.70733939,199.05,198.97,4.5227]
[1761499604382,4.70733939,199.05,198.97,7.1827]
[1761499604576,8.9337656,199.05,198.97,7.1827]
[1761499604776,4.22577484,199.04,198.97,7.1827]
[1761499605080,4.70733939,199.05,198.97,7.1827]
[1761499607184,4.70733939,199.05,198.98,2.66]
[1761499607484,4.70733939,199.05,198.99,5.78]
[1761499613090,3.62015315,199.04,198.99,8.44]
[1761499613290,3.62015315,199.03,199.0,2.66]
[1761499613492,3.62015315,199.02,199.0,2.66]
[1761499613691,3.62015315,199.01,199.0,2.66]
[1761499626408,3.62192222,199.01,199.0,2.66]
[1761499641118,3.62192222,199.01,198.98,2.82]
[1761499641311,3.62192222,199.0,198.98,2.82]
[1761499641616,3.62192222,198.99,198.98,2.82]
[1761499641919,7.85370286,199.03,198.98,2.82]
[1761499642219,3.62192222,199.02,198.98,2.82]
[1761499642418,3.62192222,199.01,198.98,2.82]
[1761499642617,3.62192222,199.0,198.98,2.82]
[1761499642810,4.70192849,199.05,198.98,2.82]
[1761499643011,3.6229414,199.04,198.98,2.82]
[1761499643211,3.6229414,199.03,198.98,2.82]
[1761499643411,8.93237778,199.05,198.99,2.82]
[1761499643412,3.6229414,199.02,198.99,2.82]
[1761499643713,3.6229414,199.01,198.99,2.82]
[1761499643920,3.6229414,199.0,198.99,2.82]
[1761499644615,3.6229414,199.03,198.99,2.82]
[1761499644823,3.6229414,199.02,198.99,2.82]
[1761499645119,3.6229414,199.01,199.0,2.82]
[1761499651223,3.6229414,199.04,199.0,2.82]
[1761499651425,3.6229414,199.03,199.0,2.82]
[1761499651721,3.6229414,199.02,199.0,2.82]
[1761499651923,3.6229414,199.01,199.0,2.82]
[1761499652124,3.6229414,199.04,199.0,2.82]
[1761499652320,3.6229414,199.03,199.0,2.82]
[1761499652521,3.6229414,199.02,199.0,2.82]
[1761499652725,3.6229414,199.01,199.0,2.82]
[1761499652926,3.6229414,199.04,199.0,2.82]
[1761499653127,3.6229414,199.03,199.0,2.82]
[1761499653318,3.6229414,199.02,199.0,2.82]
[1761499653518,4.24258425,199.05,199.0,2.82]
[1761499653519,3.6229414,199.01,199.0,2.82]
[1761499653722,3.6229414,199.04,199.0,2.82]
[1761499653918,3.6229414,199.03,199.0,2.82]
[1761499654127,3.6229414,199.02,199.0,2.82]
[1761499654328,3.6229414,199.01,199.0,2.82]
[1761499654524,3.6229414,199.04,199.0,2.82]
[1761499654720,3.6229414,199.03,199.0,2.82]
[1761499654927,3.6229414,199.02,199.0,2.82]
[1761499655131,3.6229414,199.01,199.0,2.82]
[1761499655424,3.6229414,199.04,199.0,2.82]
[1761499655626,3.6229414,199.03,199.0,2.82]
[1761499655818,3.6229414,199.02,199.0,2.82]
[1761499656020,3.6229414,199.01,199.0,2.82]
[1761499656227,3.6229414,199.04,199.0,2.82]
[1761499656427,3.6229414,199.03,199.0,2.82]
[1761499656630,3.6229414,199.02,199.0,2.82]
[1761499656830,3.6229414,199.01,199.0,2.82]
[1761499657031,7.86516012,199.05,199.0,2.82]
[1761499657223,3.6229414,199.04,199.0,2.82]
[1761499657423,3.6229414,199.03,199.01,9.33]
[1761499657623,3.6229414,199.02,199.01,9.33]
[1761499662234,3.6229414,199.02,199.01,6.51]
[1761499664332,7.86516012,199.02,199.01,6.51]
[1761499664533,3.6229414,199.02,199.01,6.51]
[1761499665330,7.86516012,199.02,199.01,6.51]
[1761499666533,7.86516012,199.02,199.01,6.30109839]
[1761499668133,7.86516012,199.02,199.01,0.00109839]
[1761499668134,18.08369892,199.02,199.01,0.00109839]
[1761499668331,7.86516012,199.02,199.01,0.00109839]
[1761499671135,11.80765988,199.02,199.01,0.00109839]
[1761499671435,7.86516012,199.02,199.01,0.00109839]
[1761499674441,3.6229414,199.02,199.01,0.00109839]
[1761499676145,11.78305093,199.02,199.01,0.00109839]
[1761499676340,18.05482519,199.02,199.01,0.00109839]
[1761499681134,7.86516012,199.02,199.01,0.00109839]
[1761499681737,3.6229414,199.02,199.01,0.00109839]
[1761499682246,8.30102718,199.02,199.01,0.00109839]
[1761499682436,12.5432459,199.02,199.01,0.00109839]
[1761499683347,12.5432459,199.02,198.98,5.0]
[1761499683647,3.6229414,199.01,198.99,2.62]
[1761499683840,7.92004482,199.04,198.99,2.62]
[1761499684245,3.6229414,199.03,198.99,2.62]
[1761499689649,3.6229414,199.03,199.0,6.28]
[1761499689847,3.6229414,199.02,199.0,6.28]
[1761499690251,3.6229414,199.01,199.0,6.28]
[1761499695159,7.92004482,199.01,199.0,6.28]
[1761499696766,12.5981306,199.01,199.0,6.28]
[1761499707164,7.92004482,199.01,199.0,6.28]
[1761499708772,3.6229414,199.01,199.0,6.28]
[1761499708968,7.92004482,199.01,199.0,6.28]
[1761499709166,3.6229414,199.01,199.0,6.28]
[1761499709365,7.92004482,199.01,199.0,6.28]
[1761499710472,7.92004482,199.01,199.0,9.01]
[1761499710672,7.92004482,199.01,199.0,6.28]
[1761499712073,3.6229414,199.01,199.0,6.28]
[1761499712274,7.92004482,199.01,199.0,9.01]
[1761499712574,12.61523512,199.01,199.0,9.01]
[1761499718680,12.61523512,199.01,199.0,2.73]
[1761499718881,12.61523512,199.01,198.99,2.85]
[1761499719181,7.92004482,199.0,198.98,9.4]
[1761499719377,3.6229414,198.99,198.97,5.18]
[1761499719581,3.6229414,198.98,198.97,5.18]
[1761499722885,7.92004482,198.98,198.97,5.18]
[1761499723884,7.94862209,198.98,198.97,5.18]
[1761499724079,3.6229414,198.98,198.97,5.18]
[1761499739197,4.70627451,199.13,198.98,2.85]
[1761499739387,9.40767913,199.24,199.01,2.85]
[1761499739591,3.92527353,199.23,199.01,2.85]
[1761499739794,3.92527353,199.24,199.01,2.85]
[1761499739993,3.92527353,199.24,199.1,2.85]
[1761499740293,0.87415222,199.26,199.1,2.85]
[1761499740493,10.28183135,199.26,199.1,2.85]
[1761499741099,0.87415222,199.26,199.1,2.85]
[1761499742996,0.87415222,199.26,199.12,2.76]
[1761499745903,0.87415222,199.26,199.13,2.32]
[1761499746404,1.0,199.25,199.13,2.32]
[1761499746804,0.87415222,199.26,199.13,2.32]
[1761499748799,0.87415222,199.26,199.13,4.99]
[1761499752009,1.0,199.25,199.13,4.99]
[1761499752214,0.87415222,199.26,199.13,4.99]
[1761499752714,0.87415222,199.26,199.14,2.67]
[1761499754608,0.87415222,199.26,199.13,2.32]
[1761499755809,0.87415222,199.26,199.13,4.99]
[1761499756605,0.87415222,199.26,199.13,2.32]
[1761499756811,15.08,199.24,199.13,2.32]
[1761499757115,10.28183135,199.26,199.13,2.32]
[1761499757319,10.28183135,199.26,199.13,4.99]
[1761499757518,0.87415222,199.26,199.13,4.99]
[1761499758217,15.95415222,199.26,199.13,4.99]
[1761499758409,25.36183135,199.26,199.13,4.99]
[1761499758811,15.95415222,199.26,199.13,4.99]
[1761499759017,25.36183135,199.26,199.13,4.99]
[1761499759217,15.95415222,199.26,199.13,4.99]
[1761499759509,0.87415222,199.26,199.13,4.99]
[1761499759911,0.87415222,199.26,199.14,2.67]
[1761499762122,0.87415222,199.26,199.13,2.32]
[1761499762321,15.08,199.25,199.13,2.32]
[1761499762520,24.48767913,199.25,199.13,2.32]
[1761499764922,15.08,199.25,199.11,7.05]
[1761499765123,24.48767913,199.25,199.11,7.05]
[1761499765418,15.08,199.23,199.11,4.38]
[1761499765922,15.08,199.21,199.11,4.38]
[1761499766124,4.48267564,199.2,199.11,4.38]
[1761499766322,66.00267564,199.19,199.11,4.38]
[1761499766523,4.48267564,199.18,199.11,4.38]
[1761499766724,4.48267564,199.17,199.11,4.38]
[1761499766915,4.48267564,199.16,199.11,4.38]
[1761499767115,4.48267564,199.15,199.11,4.38]
[1761499767316,4.48267564,199.18,199.11,4.38]
[1761499767523,4.48267564,199.17,199.11,4.38]
[1761499767723,4.48267564,199.16,199.11,4.38]
[1761499767926,4.48267564,199.15,199.11,4.38]
[1761499768124,4.48267564,199.18,199.11,4.38]
[1761499768422,4.48267564,199.17,199.12,2.32]
[1761499768622,4.48267564,199.16,199.12,2.32]
[1761499768923,4.48267564,199.15,199.12,2.32]
[1761499769112,4.48267564,199.14,199.12,2.32]
[1761499769316,4.48267564,199.18,199.12,2.32]
[1761499769516,4.48267564,199.17,199.12,2.32]
[1761499769721,4.48267564,199.16,199.12,2.32]
[1761499769921,4.48267564,199.15,199.12,2.32]
[1761499770124,4.48267564,199.14,199.12,2.32]
[1761499770323,4.48267564,199.18,199.12,2.32]
[1761499770526,4.48267564,199.17,199.12,2.32]
[1761499770722,4.48267564,199.16,199.12,2.32]
[1761499770922,4.48267564,199.15,199.12,2.32]
[1761499771128,4.48267564,199.14,199.12,2.32]
[1761499771429,4.48616692,199.18,199.12,2.32]
[1761499771628,4.48616692,199.17,199.12,2.32]
[1761499771828,4.48616692,199.16,199.12,2.32]
[1761499772029,4.48616692,199.15,199.12,2.32]
[1761499772224,4.48616692,199.14,199.12,2.32]
[1761499772424,4.48616692,199.18,199.12,2.32]
[1761499772625,4.48616692,199.17,199.12,2.32]
[1761499772824,4.48616692,199.16,199.12,2.32]
[1761499773126,4.48616692,199.15,199.12,2.32]
[1761499773326,4.48616692,199.14,199.12,2.32]
[1761499773528,4.48616692,199.13,199.12,2.32]
[1761499773730,4.48616692,199.18,199.12,2.32]
[1761499773931,4.48616692,199.17,199.12,2.32]
[1761499774133,4.48616692,199.16,199.12,2.32]
[1761499774327,4.48616692,199.15,199.12,2.32]
[1761499774627,4.48616692,199.14,199.12,2.32]
[1761499774824,4.48616692,199.17,199.12,2.32]
[1761499775032,4.48616692,199.16,199.12,2.32]
[1761499775231,4.48616692,199.15,199.12,2.32]
[1761499775436,4.48616692,199.14,199.12,2.32]
[1761499775634,4.48616692,199.13,199.08,2.67]
[1761499775934,65.94616692,199.12,199.09,4.88]
[1761499776129,4.48616692,199.11,199.09,4.88]
[1761499776832,4.48616692,199.11,199.09,7.55]
[1761499778237,4.48616692,199.1,199.09,7.55]
[1761499778425,4.48616692,199.11,199.09,7.55]
[1761499778629,4.48616692,199.1,199.09,7.55]
[1761499778832,4.48616692,199.11,199.09,7.55]
[1761499779034,4.48616692,199.1,199.09,7.55]
[1761499779233,4.48616692,199.11,199.09,7.55]
[1761499779446,4.48616692,199.1,199.09,7.55]
[1761499779738,4.48616692,199.11,199.09,7.55]
[1761499779930,4.48616692,199.1,199.09,7.55]
[1761499780130,4.48616692,199.11,199.09,7.55]
[1761499780338,4.48616692,199.1,199.09,7.55]
[1761499780637,4.48616692,199.11,199.09,7.55]
[1761499780838,4.48616692,199.1,199.09,7.55]
[1761499781027,4.48616692,199.11,199.09,4.88]
[1761499781232,4.48616692,199.1,199.09,4.88]
[1761499784333,4.48616692,199.1,199.09,7.61]
[1761499785638,4.48616692,199.11,199.09,7.61]
[1761499785833,4.48616692,199.1,199.09,7.61]
[1761499787542,4.48616692,199.11,199.09,7.61]
[1761499787730,4.48616692,199.1,199.09,7.61]
[1761499787930,4.48616692,199.11,199.09,7.61]
[1761499788135,4.48616692,199.1,199.09,7.61]
[1761499794050,4.48616692,199.1,199.09,4.88]
[1761499794348,4.48616692,199.1,199.09,7.61]
[1761499796543,4.48616692,199.1,199.09,4.88]
[1761499799252,9.1715698,199.1,199.09,4.88]
[1761499800648,9.13042021,199.1,199.09,4.88]
[1761499801455,4.44501733,199.1,199.09,4.88]
[1761499802042,9.13290239,199.1,199.09,4.88]
[1761499802248,67.67898917,199.12,199.09,4.88]
[1761499802446,4.44651122,199.11,199.09,4.88]
[1761499802651,4.44651122,199.1,199.09,4.88]
[1761499802957,9.13492076,199.1,199.09,7.61]
[1761499803249,4.44651122,199.1,199.09,7.61]
[1761499803450,9.13572433,199.1,199.09,7.61]
[1761499803951,70.37572433,199.1,199.09,7.61]
[1761499804353,9.13572433,199.1,199.09,7.61]
[1761499804545,70.37572433,199.1,199.09,7.61]
[1761499807162,65.68651122,199.1,199.09,7.61]
[1761499810163,65.68651122,199.1,199.09,4.88]
[1761499810867,69.51998572,199.1,199.09,4.88]
[1761499819874,69.51998572,199.1,199.08,6.09]
[1761499820075,14.54197352,199.09,199.08,6.09]
[1761499823183,14.43026903,199.09,199.08,6.09]
[1761499823880,14.43026903,199.09,199.06,11.54]
[1761499824184,8.16828123,199.08,199.06,14.34]
[1761499824384,65.45480673,199.07,199.06,14.34]
[1761499824681,69.28828123,199.07,199.06,14.34]
[1761499824879,69.28828123,199.07,199.06,11.54]
[1761499825084,75.55026903,199.07,199.06,11.54]
[1761499835792,75.55026903,199.07,199.06,6.98]
[1761499839299,69.28828123,199.07,199.06,6.98]
[1761499839499,75.55026903,199.07,199.06,6.98]
[1761499839904,8.16828123,199.07,199.06,9.58]
[1761499840101,69.20828123,199.07,199.06,9.58]
[1761499841002,69.20828123,199.07,199.06,2.6]
[1761499842210,75.47026903,199.07,199.06,2.6]
[1761499842398,69.20828123,199.07,199.06,2.6]
[1761499843206,75.47026903,199.07,199.06,2.6]
[1761499844607,75.46308114,199.07,199.06,2.6]
[1761499846003,69.20109334,199.07,199.06,2.6]
[1761499849910,8.16109334,199.07,199.06,2.6]
[1761499850208,65.29480673,199.07,199.06,2.6]
[1761499853611,62.43480673,199.07,199.06,2.6]
[1761499853811,59.57480673,199.07,199.06,2.6]
[1761499854711,60.98,199.1,199.06,2.6]
[1761499855300,1.78,199.17,199.06,2.6]
[1761499855301,4.69408146,199.13,199.06,2.6]
[1761499855613,65.65408146,199.13,199.06,2.6]
[1761499857409,65.65408146,199.13,199.07,4.88]
[1761499857613,65.65408146,199.13,199.08,2.6]
[1761499857907,60.96,199.13,199.08,2.6]
[1761499858813,60.96,199.13,199.1,2.6]
[1761499860617,4.69408146,199.17,199.1,2.6]
[1761499860916,60.96,199.16,199.1,2.6]
[1761499865722,4.24448574,199.15,199.1,2.6]
[1761499867223,60.96,199.16,199.1,2.6]
[1761499873819,1.77,199.21,199.1,2.6]
[1761499874119,62.65,199.2,199.1,2.6]
[1761499874320,4.23783108,199.19,199.1,2.6]
[1761499874520,6.00783108,199.19,199.1,2.6]
[1761499876530,1.77,199.19,199.1,2.6]
[1761499882133,1.77,199.19,199.1,4.5198]
[1761499882332,1.77,199.19,199.11,2.66]
[1761499884534,1.77,199.19,199.13,2.66]
[1761499891140,1.77,199.19,199.12,6.02]
[1761499891546,1.77,199.18,199.12,6.02]
[1761499892545,1.77,199.17,199.12,6.02]
[1761499894645,1.77,199.16,199.12,6.02]
[1761499896048,1.77,199.15,199.12,6.02]
[1761499896242,1.77,199.15,199.12,10.9]
[1761499896441,1.77,199.14,199.12,10.9]
[1761499896648,1.77,199.13,199.12,10.9]
[1761499898546,1.77,199.13,199.12,4.88]
[1761499901258,5.99765839,199.13,199.12,4.88]
[1761499901553,1.77,199.13,199.12,4.88]
[1761499902652,4.22765839,199.14,199.12,7.45]
[1761499902653,6.00765839,199.14,199.12,7.45]
[1761499902858,41.60765839,199.14,199.13,2.57]
[1761499905351,4.22765839,199.14,199.13,2.57]
[1761499905552,4.22765839,199.17,199.13,2.57]
[1761499905859,6.00765839,199.17,199.13,2.57]
[1761499906961,4.22765839,199.17,199.13,2.57]
[1761499907151,4.69408146,199.18,199.13,2.57]
[1761499907347,8.92173985,199.18,199.13,2.57]
[1761499907553,4.22765839,199.18,199.13,2.57]
[1761499907754,8.92173985,199.19,199.13,2.57]
[1761499908459,4.22765839,199.19,199.13,2.57]
[1761499908659,6.00765839,199.2,199.13,2.57]
[1761499914060,4.22765839,199.2,199.13,2.57]
[1761499914561,4.22765839,199.21,199.13,2.57]
[1761499915365,9.8368263,199.22,199.13,2.57]
[1761499916157,6.00765839,199.22,199.13,2.57]
[1761499916359,9.83778441,199.22,199.13,2.57]
[1761499916559,6.00765839,199.22,199.13,2.57]
[1761499917662,1.78,199.22,199.13,2.57]
[1761499919165,4.22765839,199.22,199.13,2.57]
[1761499919358,4.69408146,199.24,199.13,2.57]
[1761499919359,1.78,199.21,199.13,2.57]
[1761499929669,4.23566345,199.22,199.13,2.57]
[1761499929870,10.69974491,199.23,199.13,2.57]
[1761499930174,4.23566345,199.22,199.13,2.57]
[1761499931073,4.23566345,199.22,199.14,2.76]
[1761499931773,6.00566345,199.23,199.14,2.76]
[1761499934874,4.23566345,199.23,199.15,2.76]
[1761499935074,4.23566345,199.24,199.15,2.76]
[1761499936177,6.2619878,199.3,199.15,2.76]
[1761499936178,4.69408146,199.31,199.23,2.76]
[1761499936379,1.77,199.29,199.15,4.69300979]
[1761499936680,1.77,199.28,199.16,2.76]
[1761499936883,1.77,199.27,199.16,2.76]
[1761499937084,1.77,199.27,199.17,2.76]
[1761499939978,1.77,199.27,199.18,2.76]
[1761499940483,1.77,199.27,199.2,2.76]
[1761499965099,1.77,199.26,199.2,2.76]
[1761499965596,4.67067171,199.26,199.19,12.95]
[1761499965909,1.77,199.24,199.19,12.95]
[1761499966502,1.77,199.23,199.19,15.75]
[1761499969104,1.77,199.23,199.2,2.8]
[1761499969306,5.99839908,199.24,199.2,2.8]
[1761499969601,1.77,199.24,199.2,2.8]
[1761499971306,5.99839908,199.25,199.2,2.8]
[1761499971503,4.22839908,199.25,199.2,2.8]
[1761499971697,4.67067171,199.26,199.2,2.8]
[1761499972105,4.22839908,199.26,199.2,2.8]
[1761499972403,4.22839908,199.27,199.2,2.8]
[1761499972906,5.99839908,199.27,199.2,2.8]
[1761499973504,5.99839908,199.27,199.22,2.8]
[1761499975109,5.99839908,199.27,199.23,2.8]
[1761499977008,4.22839908,199.27,199.23,2.8]
[1761499977210,5.99839908,199.26,199.23,2.8]
[1761499979499,1.77,199.26,199.23,2.8]
[1761499979702,5.99839908,199.26,199.23,2.8]
[1761499981106,1.77,199.26,199.23,2.8]
[1761499987027,4.22839908,199.27,199.23,2.8]
[1761499987327,1.77,199.27,199.23,2.8]
[1761499989028,1.77,199.27,199.22,5.92]
[1761499989324,1.77,199.26,199.22,5.92]
[1761499989716,1.77,199.26,199.22,8.63]
[1761499991530,1.77,199.26,199.22,13.19]
[1761499993029,1.77,199.26,199.23,2.71]
[1761499994827,5.99839908,199.25,199.22,13.19]
[1761499995031,1.77,199.24,199.22,13.19]
[1761499995220,5.99839908,199.26,199.23,2.71]
[1761499999836,4.22839908,199.26,199.23,2.71]
[1761500000034,1.77,199.25,199.23,2.71]
[1761500000433,5.99839908,199.25,199.23,2.71]
[1761500000634,1.77,199.25,199.23,2.71]
[1761500001030,1.77,199.24,199.23,2.71]
[1761500001429,1.77,199.24,199.22,13.19]
[1761500002032,4.22839908,199.26,199.22,13.19]
[1761500002033,5.99839908,199.26,199.23,2.71]
[1761500002535,1.77,199.25,199.23,2.71]
[1761500003836,1.77,199.25,199.22,10.48]
[1761500004029,1.77,199.24,199.22,10.48]
[1761500004340,1.77,199.24,199.22,13.19]
[1761500005338,1.77,199.24,199.22,10.48]
[1761500005537,5.99839908,199.25,199.23,2.71]
[1761500007337,5.99839908,199.26,199.23,2.71]
[1761500008041,1.77,199.25,199.23,2.71]
[1761500009734,1.77,199.25,199.22,10.48]
[1761500009934,5.99839908,199.25,199.22,10.48]
[1761500010140,1.77,199.24,199.22,13.19]
[1761500011338,6.02304667,199.25,199.23,2.71]
[1761500011542,1.77,199.25,199.23,2.71]
[1761500011740,6.02304667,199.25,199.23,2.71]
[1761500011936,1.77,199.25,199.23,2.71]
[1761500012332,6.02304667,199.25,199.23,2.71]
[1761500012535,1.77,199.25,199.23,2.71]
[1761500012731,6.02304667,199.25,199.23,2.71]
[1761500012938,1.77,199.25,199.23,2.71]
[1761500013242,6.02304667,199.25,199.23,2.71]
[1761500013434,1.77,199.25,199.23,2.71]
[1761500013635,6.02304667,199.25,199.23,2.71]
[1761500013836,1.77,199.25,199.23,2.71]
[1761500014042,6.02304667,199.25,199.23,2.71]
[1761500014245,1.77,199.25,199.23,2.71]
[1761500014444,6.02304667,199.25,199.23,2.71]
[1761500014943,1.77,199.24,199.22,10.48]
[1761500015343,1.77,199.23,199.22,10.48]
[1761500015543,4.25304667,199.25,199.22,13.19]
[1761500015747,4.25304667,199.24,199.22,13.19]
[1761500019045,10.70371838,199.23,199.22,10.48]
[1761500019250,14.54871865,199.23,199.22,10.48]
[1761500022445,6.03304667,199.23,199.22,10.48]
[1761500023251,4.25304667,199.23,199.22,13.3]
[1761500023446,4.25304667,199.24,199.23,2.82]
[1761500024245,4.67067171,199.25,199.23,2.82]
[1761500024550,4.25304667,199.25,199.23,2.82]
[1761500031164,4.25304667,199.26,199.23,2.82]
[1761500031962,6.03304667,199.26,199.23,2.82]
[1761500035163,4.25304667,199.26,199.23,2.82]
[1761500035560,6.03304667,199.26,199.23,8.28]
[1761500035864,1.78,199.25,199.23,8.28]
[1761500039959,6.03304667,199.26,199.24,2.82]
[1761500042063,8.92371838,199.25,199.23,10.91]
[1761500042264,10.70371838,199.24,199.23,10.91]
[1761500042665,6.03304667,199.24,199.23,10.91]
[1761500045269,4.25304667,199.24,199.23,10.91]
[1761500045574,8.92329173,199.26,199.24,2.58]
[1761500045777,4.25262002,199.25,199.24,2.58]